fUSD/lending_fUSD_20250127
["ID","MTS","AMOUNT","RATE_DAILY","PERIOD"]
[350602920,1737989439905,-150.0,0.00011853,2]
[350602921,1737989439915,-150.0,0.00011856,2]
[350602922,1737989439925,-150.0,0.00011857,2]
[350602923,1737989439935,-150.0,0.00011861,2]
[350602924,1737989439944,-500.0,0.00011862,2]
[350602925,1737989439954,-500.0,0.00011862,2]
[350602926,1737989439965,-500.0,0.00011862,2]
[350602927,1737989439974,-315.91104466,0.00011862,2]
[350602928,1737989439983,-500.0,0.00011862,2]
[350602929,1737989439992,-500.0,0.00011862,2]
[350602930,1737989440001,-500.0,0.00011862,2]
[350602931,1737989440011,-150.0,0.00011862,2]
[350602932,1737989440021,-500.0,0.00011862,2]
[350602933,1737989440030,-2000.0,0.00011863,2]
[350602934,1737989440039,-200.0,0.00011863,2]
[350602935,1737989440050,-3000.0,0.00011863,2]
[350602936,1737989440062,-2000.0,0.00011863,2]
[350602937,1737989440072,-200.0,0.00011863,2]
[350602938,1737989440081,-1462.08113047,0.00011863,2]
[350602939,1737989440091,-150.0,0.00011864,2]
[350602940,1737989440100,-6969.80817374,0.00011867,2]
[350602941,1737989440110,-11762.09393848,0.00011867,2]
[350602942,1737989440119,-500.0,0.00011868,2]
[350602943,1737989440129,-500.0,0.00011868,2]
[350602944,1737989440138,-283.3,0.00011868,2]
[350602945,1737989440147,-500.0,0.00011868,2]
[350602946,1737989440157,-397.50735891,0.00011868,2]
[350602947,1737989440167,-62968.51339347,0.00011869,2]
[350602950,1737989440396,-67039.6047972,0.00011869,2]
[350602953,1737989440428,-3262.1,0.00011869,2]
[350602954,1737989440440,-500.0,0.00011869,2]
[350602956,1737989440452,-4606.73125521,0.00011869,2]
[350602957,1737989440464,-515.24829337,0.00011869,2]
[350602958,1737989440476,-547.91945619,0.00011869,2]
[350602959,1737989440571,-3054.94382158,0.00011869,2]
[350602960,1737989440583,-5490.96701089,0.00011869,2]
[350602961,1737989440592,-830.77,0.00011869,2]
[350602962,1737989440602,-500.0,0.00011869,2]
[350602963,1737989440611,-622.65,0.00011869,2]
[350602964,1737989440621,-1253.14,0.00011869,2]
[350602965,1737989440632,-500.0,0.00011869,2]
[350602966,1737989440641,-500.0,0.00011869,2]
[350602967,1737989440651,-500.0,0.00011869,2]
[350602968,1737989440661,-500.0,0.00011869,2]
[350602969,1737989440671,-2478.37,0.00011869,2]
[350602970,1737989440680,-627.28,0.00011869,2]
[350602971,1737989440689,-548.17,0.00011869,2]
[350602972,1737989440699,-988.46,0.00011869,2]
[350602973,1737989440708,-654.34,0.00011869,2]
[350602974,1737989440718,-885.79,0.00011869,2]
[350602975,1737989440727,-659.02,0.00011869,2]
[350602976,1737989440737,-500.0,0.00011869,2]
[350602977,1737989440746,-784.42,0.00011869,2]
[350602978,1737989440756,-694.21,0.00011869,2]
[350602979,1737989440766,-643.87,0.00011869,2]
[350602980,1737989440775,-1117.68,0.00011869,2]
[350602981,1737989440785,-1117.93,0.00011869,2]
[350602982,1737989440794,-500.0,0.00011869,2]
[350602983,1737989440804,-500.0,0.00011869,2]
[350602984,1737989440816,-500.0,0.0001187,2]
[350602985,1737989440825,-500.0,0.0001187,2]
[350602986,1737989440835,-500.0,0.0001187,2]
[350602987,1737989440844,-500.0,0.0001187,2]
[350602988,1737989440854,-500.0,0.0001187,2]
[350602989,1737989440863,-500.0,0.0001187,2]
[350602990,1737989440873,-500.0,0.0001187,2]
[350602991,1737989440882,-500.0,0.0001187,2]
[350602992,1737989440891,-500.0,0.0001187,2]
[350602993,1737989440901,-500.0,0.0001187,2]
[350602994,1737989440911,-500.0,0.0001187,2]
[350602995,1737989440920,-500.0,0.0001187,2]
[350602996,1737989440930,-535.49087013,0.0001187,2]
[350602997,1737989440942,-261.50912987,0.0001187,2]
[350602998,1737989440952,-150.0,0.0001187,2]
[350602999,1737989440962,-281.05354883,0.0001187,2]
[350603000,1737989440973,-1427.06645117,0.0001187,2]
[350603001,1737989440983,-1508.27016883,0.0001187,2]
[350603002,1737989441009,-2062.57203977,0.0001187,2]
[350603003,1737989441018,-19060.8573655,0.0001187,2]
[350603004,1737989441028,-1088.6596826,0.0001187,2]
[350603005,1737989441038,-500.0,0.0001187,2]
[350603006,1737989441049,-150.0,0.00011871,2]
[350603007,1737989441059,-153.577788,0.00011875,2]
[350603008,1737989441069,-11762.09393848,0.00011875,2]
[350603009,1737989441078,-153.577788,0.00011876,2]
[350603010,1737989441088,-150.0,0.00011876,2]
[350603011,1737989441098,-265.44890854,0.00011876,2]
[350603012,1737989441107,-557.584654,0.00011876,2]
[350603013,1737989441117,-157.250221,0.00011878,2]
[350603015,1737989441127,-515.53,0.0001188,2]
[350603017,1737989441136,-14364.19567309,0.0001188,2]
[350603021,1737989441744,-309.26026771,0.00010958,2]
[350603022,1737989442017,-190.73973229,0.00010958,2]
[350603023,1737989442027,-500.0,0.00010958,2]
[350603024,1737989442036,-212.60266193,0.00011099,2]
[350603025,1737989442047,-56.77490783,0.00011099,2]
[350603026,1737989442057,-1615.56509217,0.0001188,2]
[350603027,1737989442071,-699.54,0.0001188,2]
[350603028,1737989442082,-260.9127872,0.0001188,2]
[350603029,1737989442093,-10255.54947378,0.0001188,2]
[350603030,1737989442260,-344.9325,0.00010858,2]
[350603031,1737989442269,-150.0,0.00011619,2]
[350603032,1737989442279,-8.52045,0.00011634,2]
[350603033,1737989442290,-141.47955,0.00011634,2]
[350603034,1737989442300,-150.0,0.00011643,2]
[350603035,1737989442312,-150.0,0.00011677,2]
[350603036,1737989442321,-150.0,0.00011723,2]
[350603037,1737989442331,-150.0,0.00011821,2]
[350603038,1737989442340,-11.82248135,0.0001188,2]
[350603039,1737989442738,-150.0,0.00011609,2]
[350603040,1737989442747,-150.0,0.00011618,2]
[350603041,1737989442756,-150.0,0.0001162,2]
[350603042,1737989442766,-150.0,0.00011627,2]
[350603043,1737989442776,-150.0,0.00011628,2]
[350603044,1737989442785,-150.0,0.00011633,2]
[350603045,1737989442794,-150.0,0.00011634,2]
[350603046,1737989442803,-150.0,0.0001164,2]
[350603047,1737989442815,-150.0,0.00011645,2]
[350603048,1737989442824,-150.0,0.00011657,2]
[350603049,1737989442833,-150.0,0.00011663,2]
[350603050,1737989442843,-150.0,0.00011669,2]
[350603051,1737989442852,-150.0,0.00011683,2]
[350603052,1737989442862,-150.0,0.00011691,2]
[350603053,1737989442871,-150.0,0.00011704,2]
[350603054,1737989442881,-150.0,0.00011707,2]
[350603055,1737989442891,-150.0,0.00011721,2]
[350603056,1737989442901,-150.0,0.00011736,2]
[350603057,1737989442911,-150.0,0.00011743,2]
[350603058,1737989442920,-150.0,0.00011749,2]
[350603059,1737989442935,-150.0,0.0001175,2]
[350603060,1737989442947,-150.0,0.00011761,2]
[350603061,1737989442958,-150.0,0.00011764,2]
[350603062,1737989442967,-150.0,0.00011773,2]
[350603063,1737989442977,-150.0,0.00011777,2]
[350603064,1737989442989,-150.0,0.00011786,2]
[350603065,1737989442999,-150.0,0.0001179,2]
[350603066,1737989443009,-150.0,0.00011797,2]
[350603067,1737989443019,-150.0,0.000118,2]
[350603068,1737989443029,-150.0,0.00011802,2]
[350603069,1737989443042,-150.0,0.00011804,2]
[350603070,1737989443052,-150.0,0.00011804,2]
[350603071,1737989443065,-150.0,0.00011813,2]
[350603072,1737989443074,-150.0,0.00011815,2]
[350603073,1737989443084,-150.0,0.00011816,2]
[350603074,1737989443093,-150.0,0.00011821,2]
[350603075,1737989443103,-150.0,0.00011824,2]
[350603076,1737989443114,-150.0,0.00011846,2]
[350603077,1737989443125,-150.0,0.00011846,2]
[350603078,1737989443135,-150.0,0.00011847,2]
[350603079,1737989443145,-150.0,0.00011859,2]
[350603080,1737989443155,-150.0,0.00011868,2]
[350603081,1737989443164,-150.0,0.00011869,2]
[350603082,1737989443175,-442.78659319,0.0001188,2]
[350603083,1737989443187,-323.44594505,0.0001188,2]
[350603088,1737989443276,-269.37756976,0.00011099,2]
[350603090,1737989443286,-150.0,0.00011618,2]
[350603091,1737989443298,-150.0,0.00011619,2]
[350603092,1737989443307,-150.0,0.00011684,2]
[350603093,1737989443320,-150.0,0.00011723,2]
[350603094,1737989443329,-150.0,0.00011727,2]
[350603095,1737989443338,-150.0,0.00011729,2]
[350603097,1737989443347,-150.0,0.00011738,2]
[350603098,1737989443357,-150.0,0.00011802,2]
[350603100,1737989443367,-150.0,0.00011823,2]
[350603101,1737989443376,-5663.54583767,0.0001188,2]
[350603102,1737989443387,-4340.4,0.0001188,2]
[350603103,1737989443398,-764.09423896,0.0001188,2]
[350603104,1737989443426,-150.0,0.00011772,2]
[350603105,1737989443437,-150.0,0.00011805,2]
[350603106,1737989443446,-26074.76959008,0.0001188,2]
[350603107,1737989443455,-2588.0,0.00011881,2]
[350603108,1737989443464,-635.483,0.00011881,2]
[350603109,1737989443474,-2451.52640343,0.00011881,2]
[350603110,1737989443483,-11762.09393848,0.00011881,2]
[350603111,1737989443492,-21685.23551075,0.00011883,2]
[350603112,1737989444168,-150.0,0.00011607,2]
[350603113,1737989444177,-150.0,0.00011617,2]
[350603114,1737989444187,-150.0,0.0001162,2]
[350603115,1737989444197,-150.0,0.00011622,2]
[350603116,1737989444207,-150.0,0.00011622,2]
[350603117,1737989444217,-150.0,0.00011625,2]
[350603118,1737989444227,-281.37550387,0.0001163,2]
[350603119,1737989444237,-150.0,0.00011632,2]
[350603120,1737989444248,-150.0,0.00011635,2]
[350603121,1737989444257,-150.0,0.00011637,2]
[350603122,1737989444267,-150.0,0.00011641,2]
[350603123,1737989444277,-87.89570485,0.00011643,2]
[350603297,1737989446611,-500.0,0.00010958,2]
[350603298,1737989446621,-133.90804827,0.00010958,2]
[350603299,1737989446634,-366.09195173,0.00010958,2]
[350603300,1737989446643,-458.74984126,0.00010958,2]
[350603301,1737989446655,-60.13015874,0.00010958,2]
[350603302,1737989446664,-500.0,0.00010958,2]
[350603303,1737989446675,-221.37232044,0.00011205,2]
[350603304,1737989446686,-48.00524932,0.00011205,2]
[350603305,1737989446696,-500.0,0.00011389,2]
[350603306,1737989446705,-62.10429515,0.00011643,2]
[350603307,1737989446715,-121.64045451,0.00011644,2]
[350603308,1737989446726,-28.35954549,0.00011644,2]
[350603309,1737989446736,-150.0,0.00011645,2]
[350603310,1737989446745,-76.64957956,0.00011651,2]
[350603311,1737989446757,-73.35042044,0.00011651,2]
[350603312,1737989446766,-150.0,0.00011653,2]
[350603313,1737989446775,-150.0,0.00011655,2]
[350603314,1737989446784,-150.0,0.00011657,2]
[350603315,1737989446794,-150.0,0.00011663,2]
[350603316,1737989446804,-150.0,0.00011671,2]
[350603317,1737989446820,-150.0,0.00011673,2]
[350603318,1737989446829,-150.0,0.00011677,2]
[350603319,1737989446839,-150.0,0.0001168,2]
[350603320,1737989446848,-150.0,0.00011684,2]
[350603321,1737989446858,-150.0,0.00011688,2]
[350603322,1737989446867,-150.0,0.00011691,2]
[350603323,1737989446877,-150.0,0.00011692,2]
[350603324,1737989446888,-150.0,0.00011696,2]
[350603325,1737989446898,-150.0,0.00011701,2]
[350603326,1737989446908,-150.0,0.00011702,2]
[350603327,1737989446919,-518.88,0.00011708,2]
[350603328,1737989446930,-150.0,0.0001171,2]
[350603329,1737989446940,-150.0,0.00011711,2]
[350603330,1737989446951,-150.0,0.00011711,2]
[350603331,1737989446961,-150.0,0.00011714,2]
[350603332,1737989446972,-150.0,0.00011714,2]
[350603334,1737989446982,-150.0,0.00011716,2]
[350603336,1737989446993,-150.0,0.00011725,2]
[350603338,1737989447003,-150.0,0.00011733,2]
[350603340,1737989447014,-150.0,0.00011736,2]
[350603341,1737989447024,-150.0,0.00011737,2]
[350603342,1737989447034,-150.0,0.00011738,2]
[350603344,1737989447044,-150.0,0.00011739,2]
[350603345,1737989447054,-150.0,0.00011743,2]
[350603346,1737989447067,-150.0,0.00011743,2]
[350603347,1737989447078,-150.0,0.00011744,2]
[350603350,1737989447088,-150.0,0.00011752,2]
[350603351,1737989447099,-150.0,0.00011753,2]
[350603352,1737989447109,-150.0,0.00011755,2]
[350603353,1737989447119,-150.0,0.00011761,2]
[350603354,1737989447130,-150.0,0.00011763,2]
[350603355,1737989447140,-150.0,0.00011768,2]
[350603356,1737989447151,-150.0,0.0001177,2]
[350603357,1737989447161,-150.0,0.00011773,2]
[350603358,1737989447171,-150.0,0.00011779,2]
[350603359,1737989447182,-150.0,0.00011779,2]
[350603360,1737989447192,-150.0,0.00011783,2]
[350603361,1737989447203,-150.0,0.00011789,2]
[350603362,1737989447213,-150.0,0.0001179,2]
[350603363,1737989447223,-150.0,0.00011791,2]
[350603364,1737989447233,-1000.0,0.000118,2]
[350603365,1737989447242,-150.0,0.00011801,2]
[350603366,1737989447251,-150.0,0.00011803,2]
[350603367,1737989447261,-150.0,0.00011806,2]
[350603368,1737989447271,-150.0,0.00011806,2]
[350603369,1737989447280,-150.0,0.00011809,2]
[350603370,1737989447290,-150.0,0.00011809,2]
[350603371,1737989447299,-150.0,0.0001181,2]
[350603372,1737989447308,-150.0,0.00011814,2]
[350603373,1737989447319,-150.0,0.00011817,2]
[350603374,1737989447328,-150.0,0.00011822,2]
[350603375,1737989447338,-150.0,0.00011827,2]
[350603376,1737989447347,-150.0,0.00011829,2]
[350603377,1737989447357,-127.96957956,0.00011833,2]
[350603378,1737989447385,-22.03042044,0.00011833,2]
[350603379,1737989447395,-150.0,0.00011833,2]
[350603380,1737989447405,-150.0,0.00011835,2]
[350603381,1737989447416,-150.0,0.00011835,2]
[350603382,1737989447428,-150.0,0.00011857,2]
[350603383,1737989447439,-150.0,0.00011858,2]
[350603384,1737989447449,-150.0,0.00011858,2]
[350603385,1737989447459,-150.0,0.00011862,2]
[350603386,1737989447469,-150.0,0.00011866,2]
[350603387,1737989447478,-150.0,0.00011868,2]
[350603388,1737989447487,-150.0,0.0001187,2]
[350603389,1737989447499,-22643.85665363,0.00011883,2]
[350603390,1737989447511,-333.72653088,0.00011883,2]
[350603391,1737989447520,-231.4100774,0.00011884,2]
[350603392,1737989447531,-2086.67218868,0.00011884,2]
[350603393,1737989447540,-220.66175382,0.00011884,2]
[350603394,1737989447549,-4629.49850546,0.00011884,2]
[350603395,1737989595606,500.0,0.00023,120]
[350603396,1737989627385,1000.0,0.00023,120]
[350603397,1737989648231,500.0,0.00023,120]
[350603398,1737989681034,1000.0,0.00013698,30]
[350603399,1737989761032,164.93,8.174e-05,2]
[350603400,1737989815486,836.95,8.3e-05,2]
[350604023,1737990631800,-52852.00000001,0.0001,2]
[350604024,1737990631887,-22606.465145,0.0001,2]
[350604025,1737990631985,-45490.97610054,0.0001,2]
[350604026,1737990631998,-74770.69052881,0.0001,2]
[350604027,1737990632009,-101799.9999999,0.0001,2]
[350604028,1737990632219,-5284.64725654,0.0001,2]
[350604029,1737990632232,-5727.228,0.0001,2]
[350604030,1737990632243,-5695.5,0.0001,2]
[350604031,1737990632255,-327.6756,0.0001,2]
[350604288,1737990637613,-651.249959,0.0001,2]
[350604289,1737990637624,-19592.4657676,0.0001,2]
[350604290,1737990637636,-30663.0,0.0001,2]
[350604291,1737990637874,-1175.60002381,0.0001,2]
[350604292,1737990637886,-3920.62780921,0.0001,2]
[350604293,1737990637932,-9061.49703077,0.0001,2]
[350604294,1737990637943,-2549.25,0.0001,2]
[350604295,1737990638020,-4509.71223315,0.0001,2]
[350604296,1737990638035,-30698.992927,0.0001,2]
[350604297,1737990638047,-1010.3766068,0.0001,2]
[350604298,1737990638058,-7475.246675,0.0001,2]
[350604299,1737990638069,-2828.58101685,0.0001,2]
[350604333,1737990639986,-254.930664,9.95e-05,2]
[350604334,1737990639996,-71308.21732001,0.0001,2]
[350604335,1737990640006,-572.31440288,0.00010117,2]
[350604336,1737990640015,-219.12,0.00010137,2]
[350604337,1737990640025,-250.0,0.00010217,2]
[350604338,1737990640036,-156.03,0.00010217,2]
[350604339,1737990640045,-250.0,0.00010217,2]
[350604340,1737990640054,-1000.0,0.00010217,2]
[350604341,1737990640063,-1516.27,0.00010217,2]
[350604342,1737990640073,-917.0,0.00010367,2]
[350604343,1737990640082,-678.4,0.00010421,2]
[350604344,1737990640091,-565.65,0.00010432,2]
[350604345,1737990640100,-169.98,0.00010524,2]
[350604346,1737990640109,-836.95,0.00010563,2]
[350604347,1737990640119,-1500.0,0.00010613,2]
[350604348,1737990640128,-152.06264679,0.00010667,2]
[350604349,1737990640138,-501.23387837,0.00010667,2]
[350604350,1737990640147,-250.0,0.00010703,2]
[350604351,1737990640156,-23900.0,0.00010793,2]
[350604352,1737990640166,-165.38,0.00010807,2]
[350604353,1737990640175,-231.76,0.0001081,2]
[350604354,1737990640184,-2007.304,0.00010858,2]
[350604355,1737990640193,-500.0,0.00010881,2]
[350604356,1737990640202,-500.0,0.00010881,2]
[350604357,1737990640212,-500.0,0.00010881,2]
[350604358,1737990640221,-500.0,0.00010884,2]
[350604359,1737990640230,-500.0,0.00010884,2]
[350604360,1737990640239,-500.0,0.00010884,2]
[350604361,1737990640249,-500.0,0.00010884,2]
[350604362,1737990640258,-500.0,0.00010884,2]
[350604363,1737990640267,-500.0,0.00010884,2]
[350604364,1737990640276,-500.0,0.00010884,2]
[350604365,1737990640287,-500.0,0.00010884,2]
[350604366,1737990640296,-500.0,0.00010884,2]
[350604368,1737990640306,-500.0,0.00010884,2]
[350604370,1737990640315,-500.0,0.00010884,2]
[350604372,1737990640324,-500.0,0.00010884,2]
[350604374,1737990640334,-500.0,0.00010884,2]
[350604376,1737990640343,-500.0,0.00010884,2]
[350604378,1737990640352,-500.0,0.00010884,2]
[350604380,1737990640361,-500.0,0.00010884,2]
[350604382,1737990640370,-500.0,0.00010884,2]
[350604384,1737990640380,-268.94,0.00010884,2]
[350604386,1737990640389,-158.82589779,0.000109,2]
[350604387,1737990640398,-158.82589776,0.000109,2]
[350604389,1737990640407,-158.82589776,0.000109,2]
[350604391,1737990640416,-157.258808,0.00010958,2]
[350604393,1737990640426,-572.3374004,0.00010958,2]
[350604394,1737990640435,-532.5383127,0.00010958,2]
[350604395,1737990640444,-494.84326508,0.00010958,2]
[350604396,1737990640454,-500.0,0.00010958,2]
[350604397,1737990640463,-500.0,0.00010958,2]
[350604398,1737990640472,-500.0,0.00010958,2]
[350604399,1737990640481,-300.31290349,0.00010958,7]
[350604400,1737990640491,-500.0,0.00010958,2]
[350604401,1737990640500,-500.0,0.00010958,2]
[350604402,1737990640509,-524.24073402,0.00010958,2]
[350604403,1737990640519,-502.29379646,0.00010958,2]
[350604404,1737990640528,-500.0,0.00010958,2]
[350604405,1737990640539,-500.0,0.00010958,2]
[350604406,1737990640549,-500.0,0.00010958,2]
[350604407,1737990640558,-500.0,0.00010958,2]
[350604408,1737990640568,-500.0,0.00010958,2]
[350604409,1737990640577,-517.61798395,0.00010958,2]
[350604410,1737990640586,-500.0,0.00010958,2]
[350604411,1737990640595,-500.0,0.00010958,2]
[350604412,1737990640605,-500.0,0.00010958,2]
[350604413,1737990640615,-566.54670418,0.00010958,2]
[350604414,1737990640627,-500.0,0.00010958,2]
[350604415,1737990640637,-500.0,0.00010958,2]
[350604416,1737990640647,-500.0,0.00010958,2]
[350604417,1737990640657,-500.0,0.00010958,2]
[350604418,1737990640667,-500.0,0.00010958,2]
[350604419,1737990640676,-500.0,0.00010958,2]
[350604420,1737990640685,-500.0,0.00010958,2]
[350604421,1737990640695,-605.96,0.00010958,2]
[350604422,1737990640704,-590.85004856,0.00010958,2]
[350604423,1737990640714,-500.0,0.00010958,2]
[350604424,1737990640723,-500.0,0.00010958,2]
[350604425,1737990640733,-500.0,0.00010958,2]
[350604426,1737990640743,-500.0,0.00010958,2]
[350604427,1737990640752,-500.0,0.00010958,2]
[350604428,1737990640762,-500.0,0.00010958,2]
[350604429,1737990640771,-157.250221,0.00010958,2]
[350604430,1737990640782,-500.0,0.00010958,2]
[350604431,1737990640795,-500.0,0.00010958,2]
[350604432,1737990640804,-500.0,0.00010958,2]
[350604433,1737990640814,-500.0,0.00010958,2]
[350604434,1737990640823,-500.0,0.00010958,2]
[350604435,1737990640834,-500.0,0.00010958,2]
[350604436,1737990640844,-500.0,0.00010958,2]
[350604437,1737990640854,-500.0,0.00010958,2]
[350604438,1737990640864,-500.0,0.00010958,2]
[350604439,1737990640875,-155.204363,0.00010958,2]
[350604440,1737990640884,-155.204363,0.00010958,2]
[350604441,1737990640893,-155.204363,0.00010958,2]
[350604442,1737990640903,-304.59812847,0.00010958,2]
[350604443,1737990640912,-500.0,0.00010958,2]
[350604444,1737990640922,-500.0,0.00010958,2]
[350604445,1737990640932,-500.0,0.00010958,2]
[350604446,1737990640942,-500.0,0.00010958,2]
[350604447,1737990640952,-500.0,0.00010958,2]
[350604448,1737990640962,-500.0,0.00010958,2]
[350604449,1737990640971,-551.4,0.00010958,2]
[350604450,1737990640981,-500.0,0.00010958,2]
[350604451,1737990640991,-500.0,0.00010958,2]
[350604452,1737990641001,-500.0,0.00010958,2]
[350604453,1737990641011,-500.0,0.00010958,2]
[350604454,1737990641023,-500.0,0.00010958,2]
[350604455,1737990641037,-330.77056761,0.00010958,2]
[350604456,1737990641047,-500.0,0.00010958,2]
[350604457,1737990641056,-500.0,0.00010958,2]
[350604458,1737990641066,-587.46,0.00010958,2]
[350604459,1737990641075,-587.46,0.00010958,2]
[350604460,1737990641085,-500.0,0.00010958,2]
[350604461,1737990641094,-500.0,0.00010958,2]
[350604462,1737990641104,-660.95,0.00010958,2]
[350604463,1737990641114,-660.95,0.00010958,2]
[350604464,1737990641123,-500.0,0.00010958,2]
[350604465,1737990641133,-500.0,0.00010958,2]
[350604466,1737990641143,-500.0,0.00010958,2]
[350604467,1737990641152,-500.0,0.00010958,2]
[350604468,1737990641162,-500.0,0.00010958,2]
[350604469,1737990641172,-500.0,0.00010958,2]
[350604470,1737990641182,-500.0,0.00010958,2]
[350604471,1737990641192,-500.0,0.00010958,2]
[350604472,1737990641201,-500.0,0.00010958,2]
[350604473,1737990641211,-500.0,0.00010958,2]
[350604474,1737990641221,-500.0,0.00010958,2]
[350604475,1737990641230,-500.0,0.00010958,2]
[350604476,1737990641240,-500.0,0.00010958,2]
[350604477,1737990641249,-500.0,0.00010958,2]
[350604478,1737990641258,-814.70809569,0.00010958,2]
[350604479,1737990641504,-127.71190431,0.00010958,2]
[350604480,1737990641514,-290.50910211,0.00010958,2]
[350604481,1737990641526,-651.91089789,0.00010958,2]
[350604482,1737990641539,-500.0,0.00010958,2]
[350604483,1737990641548,-500.0,0.00010958,2]
[350604484,1737990641558,-500.0,0.00010958,2]
[350604485,1737990641568,-500.0,0.00010958,2]
[350604486,1737990641578,-500.0,0.00010958,2]
[350604487,1737990641588,-500.0,0.00010958,2]
[350604488,1737990641598,-158.82589776,0.00010959,2]
[350604489,1737990641607,-155.204363,0.00011067,2]
[350604490,1737990641616,-356.03055085,0.00011099,2]
[350604491,1737990641629,-791.44591488,0.00011099,2]
[350604492,1737990641638,-171.75160512,0.00011099,2]
[350604503,1737990644006,-636.26,0.00010958,2]
[350604504,1737990644016,-636.26,0.00010958,2]
[350604505,1737990644025,-500.0,0.00010958,2]
[350604506,1737990644035,-500.0,0.00010958,2]
[350604507,1737990644047,-1147.47646573,0.00011099,2]
[350604508,1737990644058,-2738.36203612,0.00011099,2]
[350604509,1737990644067,-2910.11364117,0.00011099,2]
[350604510,1737990644076,-2910.11364117,0.00011099,2]
[350604511,1737990644086,-2910.11364117,0.00011099,2]
[350604512,1737990644095,-2910.11364117,0.00011099,2]
[350604513,1737990644104,-2910.11364117,0.00011099,2]
[350604514,1737990644113,-2910.11364117,0.00011266,2]
[350604515,1737990644123,-158.82589776,0.00011272,2]
[350604516,1737990644133,-250.0,0.00011442,2]
[350604517,1737990644142,-2910.11364117,0.00011474,2]
[350604518,1737990644152,-150.0,0.00011483,2]
[350604519,1737990644161,-1000.0,0.00011494,2]
[350604520,1737990644170,-322.97,0.000115,2]
[350604521,1737990644180,-2751.0,0.00011507,2]
[350604522,1737990644190,-157.250221,0.00011542,2]
[350604523,1737990644199,-158.82589776,0.00011586,2]
[350604524,1737990644208,-155.204363,0.00011644,2]
[350604525,1737990644218,-2910.11364117,0.00011682,2]
[350604527,1737990644412,-430.93306688,0.00011703,2]
[350604528,1737990644422,-620.25546615,0.000118,2]
[350604529,1737990644431,-1965.15775742,0.000118,2]
[350604530,1737990644441,-295.71676567,0.000118,2]
[350604531,1737990644451,-6421.23510202,0.000118,2]
[350604532,1737990644461,-152.4076622,0.000118,2]
[350604533,1737990644470,-1064.947,0.00011821,2]
[350604534,1737990644480,-1000.0,0.00011825,2]
[350604535,1737990644490,-1000.0,0.00011825,2]
[350604536,1737990644500,-1000.0,0.00011825,2]
[350604537,1737990644510,-1000.0,0.00011825,2]
[350604538,1737990644519,-1000.0,0.00011825,2]
[350604539,1737990644528,-557.7639,0.00011825,2]
[350604540,1737990644538,-7548.47191611,0.00011828,2]
[350604541,1737990644548,-1132.70916753,0.00011831,2]
[350604542,1737990644558,-3561.24044953,0.00011844,3]
[350604543,1737990644567,-1132.70916753,0.00011844,2]
[350604544,1737990644578,-155.204363,0.00011858,2]
[350604545,1737990644587,-500.0,0.00011862,2]
[350604546,1737990644597,-424.09855816,0.00011867,2]
[350604547,1737990644607,-500.0,0.00011867,2]
[350604548,1737990644616,-500.0,0.00011867,2]
[350604549,1737990644626,-500.0,0.00011867,2]
[350604550,1737990644635,-500.0,0.00011867,2]
[350604551,1737990644643,-500.0,0.00011867,2]